fUST/lending_fUST_20240211
["ID","MTS","AMOUNT","RATE_DAILY","PERIOD"]
[313733051,1707630643291,-500.0,0.00019726,2]
[313733052,1707630643301,-500.0,0.00019726,2]
[313733053,1707630643310,-17675.48,0.00019726,2]
[313733054,1707630643319,-8392.02,0.00019726,2]
[313733055,1707630643328,-500.0,0.00019726,2]
[313733056,1707630643337,-500.0,0.00019726,2]
[313733057,1707630643346,-500.0,0.00019726,2]
[313733058,1707630643356,-2211.8,0.00019726,2]
[313733059,1707630643366,-500.0,0.00019726,2]
[313733060,1707630643376,-500.0,0.00019726,2]
[313733061,1707630643386,-500.0,0.00019726,2]
[313733062,1707630643395,-500.0,0.00019726,2]
[313733063,1707630643404,-1982.35,0.00019726,2]
[313733064,1707630643414,-1701.37,0.00019726,2]
[313733065,1707630643424,-501.74,0.00019726,2]
[313733066,1707630643528,-7926.16,0.00019726,2]
[313733067,1707630643550,-358.86505911,0.00019726,2]
[313733068,1707630643559,-1147.19,0.00019726,2]
[313733069,1707630643568,-500.0,0.00019726,2]
[313733070,1707630643578,-517.22,0.00019726,2]
[313733071,1707630643587,-1006.08,0.00019726,2]
[313733072,1707630643595,-500.0,0.00019726,2]
[313733073,1707630643604,-1940.02,0.00019726,2]
[313733074,1707630643613,-949.7,0.00019726,2]
[313733075,1707630643622,-1054.84,0.00019726,2]
[313733076,1707630643631,-9048.23,0.00019726,2]
[313733077,1707630643641,-6111.68,0.00019726,2]
[313733078,1707630643650,-500.0,0.00019726,2]
[313733079,1707630643660,-500.0,0.00019726,2]
[313733080,1707630643669,-1791.67,0.00019726,2]
[313733081,1707630643679,-500.0,0.00019726,2]
[313733082,1707630643690,-1268.95,0.00019726,2]
[313733083,1707630643699,-500.0,0.00019726,2]
[313733084,1707630643708,-516.72,0.00019726,2]
[313733085,1707630643718,-500.0,0.00019726,2]
[313733086,1707630643728,-300.0,0.00019726,2]
[313733087,1707630643737,-7883.14,0.00019726,2]
[313733088,1707630643747,-416.16606481,0.00019726,2]
[313733089,1707630643756,-614.86457641,0.00019726,2]
[313733090,1707630643765,-204.57638431,0.00019726,2]
[313733091,1707630643775,-500.0,0.00019726,2]
[313733092,1707630643784,-914.32,0.00019726,2]
[313733093,1707630643793,-836.84,0.00019726,2]
[313733094,1707630643802,-944.0,0.00019726,2]
[313733095,1707630643812,-7137.74,0.00019726,2]
[313733096,1707630643824,-151.0,0.000199,2]
[313733097,1707630643833,-361.60924338,0.00019989,2]
[313733098,1707630643843,-265.57659141,0.0002,2]
[313733099,1707630643852,-681.3383372,0.0002,2]
[313733100,1707630643862,-324.25284351,0.0002,2]
[313733101,1707630643872,-1202.57082301,0.0002,2]
[313733102,1707630643881,-291.01556131,0.0002,2]
[313733103,1707630643890,-500.0,0.0002,2]
[313733104,1707630643900,-500.0,0.0002,2]
[313733105,1707630643909,-155.95112487,0.0002,2]
[313733106,1707630643918,-500.0,0.0002,2]
[313733107,1707630643926,-518.80850765,0.0002,2]
[313733108,1707630643935,-500.0,0.0002,2]
[313733109,1707630643944,-158.63636176,0.0002,2]
[313733110,1707630643954,-500.0,0.0002,2]
[313733111,1707630643963,-500.0,0.0002,2]
[313733112,1707630643972,-841.86,0.0002,2]
[313733113,1707630643982,-500.0,0.0002,2]
[313733114,1707630643991,-505.21655041,0.0002,2]
[313733115,1707630644000,-500.0,0.0002,2]
[313733116,1707630644010,-517.13,0.0002,2]
[313733117,1707630644019,-500.0,0.0002,2]
[313733118,1707630644032,-500.0,0.0002,2]
[313733119,1707630644041,-500.0,0.0002,2]
[313733120,1707630644050,-500.0,0.0002,2]
[313733121,1707630644059,-500.0,0.0002,2]
[313733122,1707630644070,-500.0,0.0002,2]
[313733123,1707630644079,-500.0,0.0002,2]
[313733124,1707630644089,-163.65,0.0002,2]
[313733125,1707630644098,-500.0,0.0002,2]
[313733126,1707630644111,-151.0,0.0002,2]
[313733127,1707630644121,-2022.43,0.0002,2]
[313733128,1707630644132,-500.0,0.0002,2]
[313733129,1707630644142,-500.0,0.0002,2]
[313733130,1707630644152,-500.0,0.0002,2]
[313733131,1707630644161,-321.25842543,0.0002,2]
[313733132,1707630644170,-500.0,0.0002,2]
[313733133,1707630644180,-500.0,0.0002,2]
[313733134,1707630644189,-295.74486375,0.0002,2]
[313733135,1707630644199,-500.0,0.0002,2]
[313733136,1707630644208,-151.0,0.0002,2]
[313733137,1707630644222,-151.0,0.0002,2]
[313733138,1707630644232,-5010.78,0.0002,2]
[313733139,1707630644241,-6463.11,0.0002,2]
[313733140,1707630644250,-500.0,0.0002,2]
[313733141,1707630644259,-500.0,0.0002,2]
[313733142,1707630644268,-915.06,0.0002,2]
[313733143,1707630644303,-2067.11,0.0002,2]
[313733144,1707630644316,-500.0,0.0002,2]
[313733145,1707630644326,-551.70684817,0.0002,2]
[313733146,1707630644335,-1900.09,0.0002,2]
[313733147,1707630644345,-500.0,0.0002,2]
[313733148,1707630644354,-500.0,0.0002,2]
[313733149,1707630644364,-500.0,0.0002,2]
[313733150,1707630644373,-1289.83,0.0002,2]
[313733151,1707630644382,-500.0,0.0002,2]
[313733152,1707630644391,-500.0,0.0002,2]
[313733153,1707630644400,-500.0,0.0002,2]
[313733154,1707630644409,-1426.44,0.0002,2]
[313733155,1707630644419,-1351.82,0.0002,2]
[313733156,1707630644428,-500.0,0.0002,2]
[313733157,1707630644437,-500.0,0.0002,2]
[313733158,1707630644446,-13457.51373539,0.0002,2]
[313733159,1707630644821,-419.266,0.00011009,2]
[313733160,1707630645047,-5694.1787999,0.00011009,2]
[313733162,1707630645056,-2607.82045622,0.00011009,2]
[313733163,1707630645067,-640.83624213,0.00019451,2]
[313733165,1707630645077,-428.46680036,0.00019451,2]
[313733167,1707630645087,-274.15911943,0.00019451,2]
[313733168,1707630645096,-4217.96626461,0.0002,2]
[313733171,1707630645107,-8392.02,0.0002,2]
[313733172,1707630645117,-500.0,0.0002,2]
[313733175,1707630645126,-500.0,0.0002,2]
[313733176,1707630645136,-500.0,0.0002,2]
[313733178,1707630645146,-2211.8,0.0002,2]
[313733180,1707630645155,-500.0,0.0002,2]
[313733181,1707630645165,-500.0,0.0002,2]
[313733182,1707630645174,-255.3016862,0.0002,2]
[313733183,1707630645184,-1982.35,0.0002,2]
[313733184,1707630645193,-373.29699284,0.0002,2]
[313733185,1707630645202,-1701.37,0.0002,2]
[313733187,1707630645211,-501.74,0.0002,2]
[313733189,1707630645220,-4735.86363831,0.0002,2]
[313733194,1707630645994,8017.59543924,0.00010899,2]
[313733259,1707630646604,-1074.86,0.00019178,2]
[313733261,1707630646613,-500.0,0.00019178,2]
[313733262,1707630646624,-500.0,0.00019452,2]
[313733263,1707630646633,-1074.86,0.00019452,2]
[313733264,1707630646643,-500.0,0.00019726,2]
[313733265,1707630646653,-728.4564677,0.00019726,2]
[313733266,1707630646665,-346.4035323,0.00019726,2]
[313733267,1707630646674,-617.4664677,0.0002,2]
[313733268,1707630646685,-513.30229121,0.0002,2]
[313733320,1707631266176,590.45600238,0.00011,2]
[313733321,1707631268489,10316.46391248,0.00011,2]
[313733332,1707631544023,4580.459866,0.00010268,2]
[313733668,1707631837887,-590.45600238,0.00010771,2]
[313733669,1707631837898,-1018.94351989,0.00010771,2]
[313733671,1707631837907,-163.10888424,0.00010772,2]
[313733672,1707631837917,-19932.70348687,0.00010862,2]
[313733673,1707631837927,-18968.39606022,0.00010862,2]
[313733675,1707631837936,-83980.96678197,0.00010863,2]
[313733677,1707631837946,-21223.94678935,0.00010872,2]
[313733678,1707631837956,-155.12099438,0.00011009,2]
[313733679,1707631837965,-200.0,0.00011949,2]
[313733680,1707631837975,-280.0,0.00013144,2]
[313733681,1707631837985,-391.0,0.00014459,2]
[313733683,1707631837995,-1325.12153944,0.00015,2]
[313733684,1707631838004,-200.0,0.00015905,2]
[313733685,1707631838014,-348.0,0.00015905,2]
[313733687,1707631838024,-928.44600571,0.00015999,2]
[313733688,1707631838033,-629.71922886,0.000165,2]
[313733689,1707631838043,-200.0,0.00017495,2]
[313733690,1707631838053,-200.0,0.00017495,2]
[313733692,1707631838063,-368.0,0.00017495,2]
[313733693,1707631838072,-1673.04931084,0.000189,2]
[313733694,1707631838082,-325.44831912,0.00019078,2]
[313733695,1707631838091,-6017.01814931,0.00019078,2]
[313733697,1707631838104,-65887.82503455,0.00019078,2]
[313733698,1707631838116,-625.9,0.00019078,2]
[313733699,1707631838128,-7716.73958109,0.00019078,2]
[313733746,1707631844604,-1216.08311736,0.00019078,2]
[313733804,1707631845831,-482.57,0.00018887,2]
[313733805,1707631845843,-4517.43,0.00018887,2]
[313733806,1707631845853,-4323.50606246,0.00019078,2]
[313733807,1707631845863,-323.79446728,0.00019177,2]
[313733808,1707631845873,-1045.3266986,0.00019177,2]
[313733809,1707631845883,-314.13642328,0.00019177,2]
[313733810,1707631845895,-739.29,0.00019178,2]
[313733811,1707631845905,-500.0,0.00019178,2]
[313733812,1707631845914,-537.87112009,0.00019178,2]
[313733813,1707631845924,-500.0,0.00019178,2]
[313733814,1707631845933,-500.0,0.00019178,2]
[313733815,1707631845942,-500.0,0.00019178,2]
[313733816,1707631845952,-455.66236642,0.00019178,2]
[313733817,1707631845960,-500.0,0.00019178,2]
[313733818,1707631845970,-500.0,0.00019178,2]
[313733819,1707631845979,-379.16979889,0.00019178,2]
[313733820,1707631845988,-500.0,0.00019178,2]
[313733821,1707631845997,-500.0,0.00019178,2]
[313733822,1707631846006,-500.0,0.00019178,2]
[313733823,1707631846015,-500.0,0.00019178,2]
[313733824,1707631846024,-500.0,0.00019178,2]
[313733825,1707631846033,-500.0,0.00019178,2]
[313733826,1707631846042,-500.0,0.00019178,2]
[313733827,1707631846052,-382.53915203,0.00019178,2]
[313733828,1707631846061,-500.0,0.00019178,2]
[313733829,1707631846070,-500.0,0.00019178,2]
[313733830,1707631846080,-236.25129336,0.00019178,2]
[313733831,1707631846090,-619.91084143,0.00019178,2]
[313733832,1707631846100,-500.0,0.00019178,2]
[313733833,1707631846110,-500.0,0.00019178,2]
[313733834,1707631846120,-520.3541259,0.00019178,2]
[313733835,1707631846129,-500.0,0.00019178,2]
[313733836,1707631846139,-500.0,0.00019178,2]
[313733837,1707631846148,-500.0,0.00019178,2]
[313733838,1707631846157,-500.0,0.00019178,2]
[313733839,1707631846166,-500.0,0.00019178,2]
[313733840,1707631846176,-500.0,0.00019178,2]
[313733841,1707631846185,-500.0,0.00019178,2]
[313733842,1707631846194,-500.0,0.00019178,2]
[313733843,1707631846203,-500.0,0.00019178,2]
[313733844,1707631846212,-366.74508057,0.00019178,2]
[313734114,1707633031896,-690.38832205,0.00015488,2]
[313734116,1707633031906,-181.0199692,0.00015489,2]
[313734118,1707633031916,-8021.44248672,0.00015612,2]
[313734122,1707633031952,-10946.9535735,0.00015612,2]
[313734124,1707633031962,-540.40615613,0.00015613,2]
[313734141,1707633040084,-111.52516231,0.00015613,2]
[313734143,1707633040094,-154.98450155,0.00015613,2]
[313734145,1707633040103,-5563.43266976,0.00015613,2]
[313734147,1707633040112,-250.0,0.00015621,2]
[313734149,1707633040122,-525.81146916,0.00016486,2]
[313734151,1707633040133,-154.98450155,0.00016487,2]
[313734152,1707633040143,-155.11935395,0.00016488,2]
[313734153,1707633040153,-9449.34839097,0.00016489,2]
[313734253,1707633045943,-482.1,0.00016489,2]
[313734254,1707633045954,-7007.59999977,0.00016489,2]
[313734255,1707633045998,-825.0980658,0.00016489,2]
[313734489,1707634232180,-154.9690062,0.00015388,2]
[313734491,1707634232189,-180.0,0.00015389,2]
[313734492,1707634232198,-690.38832205,0.0001539,2]
[313734493,1707634232207,-1746.80219385,0.00015392,2]
[313734494,1707634232216,-564.025965,0.00015404,2]
[313734495,1707634232225,-83980.96678197,0.00015468,2]
[313734496,1707634232235,-18603.88091505,0.00015469,2]
[313734497,1707634232250,-481.64,0.00015469,2]
[313734505,1707634238185,-574.87716044,0.00015469,2]
[313734507,1707634238197,-312.76638622,0.00015469,2]
[313734518,1707634241435,-1326.1537254,0.00015469,2]
[313734606,1707634246188,-1386.43486959,0.00015469,2]
[313734607,1707634246197,-1025.86513041,0.00015991,2]
[313734608,1707634246210,-2728.6019342,0.00015991,2]
[313734654,1707634790186,500.08,0.000105,2]
[313734745,1707635432269,-640.83624213,0.00015976,2]
[313734746,1707635432282,-690.38832205,0.00015977,2]
[313734747,1707635432294,-154.95351395,0.00015978,2]
[313734748,1707635432305,-5283.53056006,0.00015979,2]
[313734764,1707635432525,-1656.57335747,0.00015989,2]
[313734826,1707635438394,-177.66520147,0.00015989,2]
[313734827,1707635438403,-913.79983,0.00015991,2]
[313735128,1707635919972,-154.95351395,0.00015974,2]
[313735129,1707635919995,-500.0,0.00015975,2]
[313735130,1707635920019,-465.04648605,0.00015976,2]
[313735155,1707636170323,10000.0,0.000275,120]
[313735183,1707636398706,109715.97116881,0.000275,120]
[313735244,1707636632558,-295.95451694,0.00015946,2]
[313735245,1707636632569,-228.95761572,0.00015947,2]
[313735247,1707636632581,-154.95351395,0.00015948,2]
[313735248,1707636632592,-4573.44400924,0.00015948,2]
[313735249,1707636632614,-710.08655082,0.00015948,2]
[313735251,1707636632625,-1643.34870361,0.00015949,2]
[313735323,1707636641765,-217.76114245,0.00015949,2]
[313735324,1707636641776,-93.44430968,0.0001595,2]
[313735385,1707636646505,-237.31322869,0.00015791,2]
[313735386,1707636646515,-237.31322869,0.0001595,2]
[313735387,1707636646523,-5.37354262,0.00015951,2]
[313735542,1707637832679,-1434.86449475,0.00014056,2]
[313735544,1707637832688,-433.36166294,0.00014056,2]
[313735546,1707637832699,-522.49468692,0.00014056,2]
[313735704,1707637839000,-1948.38142312,0.00014055,2]
[313735705,1707637839010,-3909.84376171,0.00014056,2]
[313735822,1707637847030,-417.83044849,0.00014056,2]
[313735823,1707637847039,-295.95451694,0.00014057,2]
[313735824,1707637847049,-248.22503457,0.00014057,2]
[313735860,1707638513727,1511.29191943,0.00016386,3]
[313735863,1707638685043,1630.912929,0.000181,4]
[313735904,1707639013141,261.71076217,0.00016386,7]
[313736032,1707639042971,-481.83793258,0.00013465,2]
[313736034,1707639042981,-36.77206742,0.00013466,2]
[313736037,1707639042992,-293.98547095,0.00013466,2]
[313736039,1707639043002,-1216.27452905,0.00013466,2]
[313736041,1707639043014,-596.31897244,0.00013466,2]
[313736043,1707639043025,-554.49504775,0.00013466,2]
[313736048,1707639043042,-1379.35675507,0.00013466,2]
[313736050,1707639043051,-5544.6692285,0.00013474,2]
[313736052,1707639043060,-119.55850875,0.00013476,2]
[313736204,1707639045982,-1865.32745402,0.00013476,2]
[313736217,1707639249047,307.91,0.00023361,30]
[313736218,1707639259775,256.59,0.00023336,30]
[313736219,1707639270552,213.82,0.00023336,30]
[313736221,1707639281250,178.19,0.0002429,30]
[313736222,1707639291990,890.95,0.00023295,30]
[313736240,1707639761548,14376.0,0.000275,120]
[313736242,1707639820728,-5000.0,0.00041611,120]
[313736243,1707639820751,-5000.0,0.00041611,120]
[313736244,1707639820774,-5000.0,0.00041611,120]
[313736245,1707639820798,-5000.0,0.00041611,120]
[313736246,1707639820821,-5000.0,0.00041611,120]
[313736247,1707639820845,-5000.0,0.00041611,120]
[313736248,1707639820868,-5000.0,0.00041611,120]
[313736249,1707639820890,-5000.0,0.00041611,120]
[313736250,1707639820914,-5000.0,0.00041611,120]
[313736251,1707639820936,-5000.0,0.00041611,120]
[313736252,1707639820961,-5000.0,0.00041611,120]
[313736253,1707639820985,-5000.0,0.00041611,120]
[313736254,1707639821010,-5000.0,0.00041611,120]
[313736255,1707639821035,-5000.0,0.00041611,120]
[313736256,1707639821057,-5000.0,0.00041611,120]
[313736257,1707639821081,-5000.0,0.00041611,120]
[313736258,1707639821104,-5000.0,0.00041611,120]
[313736259,1707639821129,-5000.0,0.00041611,120]
[313736260,1707639821152,-5000.0,0.00041611,120]
[313736261,1707639821176,-5000.0,0.00041611,120]
[313736262,1707639821199,-5000.0,0.00041611,120]
[313736263,1707639821223,-5000.0,0.00041611,120]
[313736264,1707639821248,-5000.0,0.00041611,120]
[313736265,1707639821273,-5000.0,0.00041611,120]
[313736266,1707639821296,-2512.37844882,0.00041611,120]
[313736267,1707639821320,-1727.00224832,0.00041611,120]
[313736268,1707639821347,-4589.736758,0.00041611,35]
[313736269,1707639821372,-500.0,0.00041611,120]
[313736270,1707639821396,-233.84914766,0.00041611,120]
[313736271,1707639821418,-4450.61137447,0.00041611,120]
[313736272,1707639821441,-968.96751337,0.00041611,120]
[313736273,1707639821464,-156.19751457,0.00041611,120]
[313736274,1707639821487,-1189.25400666,0.00041611,120]
[313736275,1707639821509,-1058.01898427,0.00041611,120]
[313736276,1707639821531,-314.41288688,0.00041611,120]
[313736277,1707639821554,-2446.90727874,0.00041611,120]
[313736278,1707639821707,-496.76316193,0.00041611,120]
[313736279,1707639821731,-3000.0,0.00041611,35]
[313736280,1707639821754,-3000.0,0.00041611,40]
[313736281,1707639821778,-3000.0,0.00041611,45]
[313736282,1707639821802,-3000.0,0.00041611,50]
[313736283,1707639821825,-3000.0,0.00041611,55]
[313736284,1707639821848,-3000.0,0.00041611,60]
[313736285,1707639821872,-1575.7,0.00041611,47]
[313736286,1707639821895,-3000.0,0.00041611,47]
[313736287,1707639821919,-767.10477037,0.00041611,85]
[313736288,1707639821943,-5020.83056967,0.00041611,120]
[313736289,1707639821966,-4503.50246753,0.00041611,90]
[313736290,1707639821989,-1318.787288,0.00041611,35]
[313736291,1707639822012,-3579.999999,0.00041611,60]
[313736292,1707639822036,-12539.6478308,0.00041611,60]
[313736293,1707639822060,-4000.0,0.00041611,60]
[313736294,1707639822083,-4000.0,0.00041611,90]
[313736295,1707639822107,-9437.0,0.00041611,120]
[313736296,1707639822130,-6000.0,0.00041611,60]
[313736297,1707639822153,-9437.0,0.00041611,90]
[313736298,1707639822178,-201.53373,0.00041611,120]
[313736299,1707639822200,-150.72046401,0.00041611,120]
[313736310,1707640018607,12616.7388791,0.00010096,2]
[313736314,1707640075206,154.90705577,0.00010096,2]
[313736315,1707640093198,155.82519712,0.00010096,2]
[313736330,1707640173074,164.12424071,0.00010487,2]
[313736331,1707640178043,164.1242407,0.00010489,2]
[313736332,1707640183145,164.1242407,0.0001049,2]
[313736337,1707640188043,164.1242407,0.00010492,2]
[313736513,1707640238546,-228.95761572,0.00010577,2]
[313736514,1707640238556,-330.75753837,0.00010577,2]
[313736515,1707640238565,-154.90705577,0.00010577,2]
[313736516,1707640238575,-1861.10984606,0.00010577,2]
[313736518,1707640238585,-1746.80219385,0.00010578,2]
[313736519,1707640238594,-481.83793258,0.00010578,2]
[313736521,1707640238603,-146.27280376,0.00010579,2]
[313736522,1707640238656,-1288.59169099,0.00010579,2]
[313736524,1707640238666,-154.90705577,0.00010579,2]
[313736525,1707640238675,-154.90705577,0.00010579,2]
[313736526,1707640238684,-6113.4447999,0.00010579,2]
[313736527,1707640238693,-500.0,0.00010579,2]
[313736528,1707640238702,-1948.38142312,0.0001058,2]
[313736529,1707640238711,-154.90705577,0.0001058,2]
[313736530,1707640238720,-19932.70348687,0.0001058,2]
[313736531,1707640238730,-20944.3104518,0.0001058,2]
[313736533,1707640238739,-18968.39606022,0.00010581,2]
[313736534,1707640238748,-20970.44740148,0.00010581,2]
[313736535,1707640238756,-5283.53056006,0.00010582,2]
[313736536,1707640238765,-154.90705577,0.00010582,2]
[313736537,1707640238775,-3758.37645262,0.00010582,2]
[313736538,1707640238787,-651.93131844,0.00010583,2]
[313736539,1707640238797,-590.45600238,0.00010583,2]
[313736540,1707640238806,-295.95451694,0.00010583,2]
[313736541,1707640238816,-535.79408158,0.00010583,2]
[313736543,1707640238826,-1962.48111679,0.00010583,2]
[313736545,1707640238835,-610.12555724,0.00010583,2]
[313736546,1707640238844,-161.61744964,0.00010584,2]
[313736548,1707640238853,-6810.29344002,0.00010592,2]
[313736550,1707640238863,-310.0,0.00010596,2]
[313736552,1707640238874,-6144.52397508,0.00010704,2]
[313736554,1707640238883,-250.0,0.00010815,2]
[313736556,1707640238891,-200.0,0.00011113,2]
[313736558,1707640238900,-870.69213245,0.00011812,2]
[313736560,1707640238910,-677.3126072,0.00011821,2]
[313736562,1707640238919,-280.0,0.00012225,2]
[313736563,1707640238928,-391.0,0.00013447,2]
[313736565,1707640238937,-154.166073,0.00013699,2]
[313736567,1707640238946,-152.84086,0.00013699,2]
[313736568,1707640238955,-151.0,0.00013699,2]
[313736569,1707640238964,-151.0,0.00013699,2]
[313736570,1707640238974,-152.353166,0.00013699,2]
[313736571,1707640238983,-382.436655,0.00013699,2]
[313736572,1707640238992,-3000.0,0.00013699,2]
[313736573,1707640239001,-279.6190831,0.00013699,2]
[313736574,1707640239010,-151.0,0.00013699,2]
[313736575,1707640239019,-360.79218266,0.00014059,2]
[313736576,1707640239028,-19148.7409661,0.00014229,2]
[313736577,1707640239037,-404.12138152,0.00014275,2]
[313736578,1707640239048,-155.4053311,0.00014373,2]
[313736579,1707640239056,-155.86263332,0.00014373,2]
[313736580,1707640239066,-155.31545438,0.00014373,2]
[313736581,1707640239075,-155.34758793,0.00014373,2]
[313736582,1707640239084,-175.34416041,0.00014373,2]
[313736583,1707640239093,-562.54093684,0.00014373,2]
[313736584,1707640239102,-179.15995042,0.00014373,2]
[313736585,1707640239111,-719.48155828,0.00014373,2]
[313736586,1707640239120,-163.17551542,0.00014373,2]
[313736587,1707640239130,-261.53600147,0.00014373,2]
[313736588,1707640239139,-155.40274411,0.00014373,2]
[313736589,1707640239148,-155.5855305,0.00014373,2]
[313736590,1707640239158,-167.23058655,0.00014373,2]
[313736591,1707640239167,-198.28827344,0.00014373,2]
[313736592,1707640239176,-270.10024426,0.00014373,2]
[313736593,1707640239185,-157.33957479,0.00014373,2]
[313736594,1707640239194,-309.75213633,0.00014373,2]
[313736595,1707640239204,-256.31305784,0.00014373,2]
[313736596,1707640239213,-1590.74050822,0.00014373,2]
[313736597,1707640239223,-155.35239046,0.00014373,2]
[313736598,1707640239232,-7987.44118127,0.00014373,2]
[313736599,1707640239241,-151.0,0.00014373,2]
[313736600,1707640239250,-212.6780741,0.00014374,2]
[313736601,1707640239260,-301.56613427,0.00014374,2]
[313736602,1707640239269,-80502.90538121,0.00014375,2]
[313736603,1707640239278,-243.896775,0.00014375,2]
[313736604,1707640239288,-200.0,0.00014792,2]
[313736605,1707640239297,-348.0,0.00014792,2]
[313736606,1707640239306,-690.38832205,0.00015,2]
[313736607,1707640239316,-1689.12587152,0.00015,2]
[313736608,1707640239325,-56591.0,0.00015,2]
[313736609,1707640239334,-151.0,0.00015,2]
[313736610,1707640239343,-404.12138152,0.00015544,2]
[313736611,1707640239352,-331.73310539,0.00015991,2]
[313736612,1707640239361,-151.0,0.0001612,2]
[313736613,1707640239369,-200.079134,0.00016164,2]
[313736614,1707640239380,-200.0,0.00016271,2]
[313736615,1707640239389,-200.0,0.00016271,2]
[313736616,1707640239400,-368.0,0.00016271,2]
[313736617,1707640239409,-156.00429501,0.00016304,2]
[313736618,1707640239419,-646.79208835,0.00016386,2]
[313736619,1707640239430,-155.97738504,0.00016386,2]
[313736620,1707640239442,-168.34924826,0.00016386,2]
[313736621,1707640239455,-154.92941805,0.00016386,2]
[313736622,1707640239467,-154.93802479,0.00016386,2]
[313736623,1707640239480,-562.97937755,0.00016487,2]
[313736624,1707640239491,-155.27640177,0.00016487,2]
[313736625,1707640239504,-524.76602405,0.000165,2]
[313736626,1707640239514,-261.22503123,0.000165,2]
[313736627,1707640239523,-151.47094,0.000165,2]
[313736628,1707640239534,-151.0,0.000165,2]
[313736629,1707640239546,-404.12138152,0.00016813,2]
[313736630,1707640239558,-637.20618249,0.00016922,2]
[313736631,1707640239569,-200.079134,0.00016986,2]
[313736632,1707640239581,-200.079134,0.00016986,2]
[313736633,1707640239591,-199.9318584,0.00016986,2]
[313736634,1707640239603,-151.0,0.00017241,2]
[313736635,1707640239614,-1003.49175493,0.00017674,2]
[313736636,1707640239625,-620.86030912,0.00017768,2]
[313736637,1707640239636,-200.0,0.00017898,2]
[313736638,1707640239648,-200.0,0.00017898,2]
[313736639,1707640239660,-200.0,0.00017898,2]
[313736640,1707640239671,-200.0,0.00017898,2]
[313736641,1707640239683,-275.0,0.00017898,2]
[313736642,1707640239693,-11238.35811735,0.00018,2]
[313736643,1707640239703,-196.246736,0.00018,2]
[313736644,1707640239712,-404.12138152,0.00018082,2]
[313736645,1707640239722,-999.20063949,0.00018098,2]
[313736646,1707640239734,-151.0,0.00018361,2]
[313736647,1707640239746,-620.04301546,0.00018657,2]
[313736648,1707640239757,-292.90348719,0.00019078,2]
[313736649,1707640239768,-163.83768116,0.00019177,2]
[313736650,1707640239780,-155.82869241,0.00019178,2]
[313736651,1707640239794,-5568.48,0.00019178,2]
[313736652,1707640239805,-253.02271488,0.00019178,2]
[313736653,1707640239816,-620.63312846,0.00019178,2]
[313736654,1707640239827,-500.0,0.00019178,2]
[313736655,1707640239839,-500.0,0.00019178,2]
[313736656,1707640239850,-500.0,0.00019178,2]
[313736657,1707640239861,-500.0,0.00019178,2]
[313736658,1707640239872,-500.0,0.00019178,2]
[313736659,1707640239885,-500.0,0.00019178,2]
[313736660,1707640239896,-504.72565063,0.00019178,2]
[313736661,1707640239907,-500.0,0.00019178,2]
[313736662,1707640239918,-500.0,0.00019178,2]
[313736663,1707640239929,-500.0,0.00019178,2]
[313736664,1707640239940,-500.0,0.00019178,2]
[313736665,1707640239952,-500.0,0.00019178,2]
[313736666,1707640239962,-500.0,0.00019178,2]
[313736667,1707640239973,-500.0,0.00019178,2]
[313736668,1707640239984,-500.0,0.00019178,2]
[313736669,1707640239995,-500.0,0.00019178,2]
[313736670,1707640240007,-500.0,0.00019178,2]
[313736671,1707640240019,-500.0,0.00019178,2]
[313736672,1707640240030,-500.0,0.00019178,2]
[313736673,1707640240040,-500.0,0.00019178,2]
[313736674,1707640240050,-851.82,0.00019178,2]